[Event "Early-Titled-Tuesday-Blitz-October-03-2023"]
[Site "Chess.com"]
[Date "2023.10.03"]
[Round "7"]
[White "Juicy_Fork"]
[Black "DarZay"]
[Result "1-0"]
[WhiteElo "2457"]
[BlackElo "2218"]
[TimeControl "180+1"]
[EndTime "9:18:38 PDT"]
[Termination "Juicy_Fork won on time"]

1. e4 {[%clk 0:02:56.1]} 1... c5 {[%clk 0:02:59.5]} 2. Nf3 {[%clk 0:02:55.3]}
2... Nc6 {[%clk 0:02:49]} 3. Bb5 {[%clk 0:02:53.6]} 3... g6 {[%clk 0:02:47.4]}
4. O-O {[%clk 0:02:52.5]} 4... Bg7 {[%clk 0:02:47.2]} 5. c3 {[%clk 0:02:53.1]}
5... Nf6 {[%clk 0:02:46.1]} 6. Qa4 {[%clk 0:02:51.5]} 6... O-O {[%clk 0:02:43]}
7. d4 {[%clk 0:02:51.1]} 7... cxd4 {[%clk 0:02:37.7]} 8. cxd4 {[%clk 0:02:52]}
8... a6 {[%clk 0:02:25.5]} 9. Re1 {[%clk 0:02:50.5]} 9... Qb6 {[%clk 0:01:53.5]}
10. Nc3 {[%clk 0:02:38.6]} 10... axb5 {[%clk 0:01:48.1]} 11. Qxa8 {[%clk
0:02:38.3]} 11... Nxd4 {[%clk 0:01:48.1]} 12. Nxd4 {[%clk 0:02:36.2]} 12... Qxd4
{[%clk 0:01:48.3]} 13. Be3 {[%clk 0:02:33.2]} 13... Qb4 {[%clk 0:01:48]} 14. Qa3
{[%clk 0:02:23.5]} 14... Qxa3 {[%clk 0:01:40.3]} 15. bxa3 {[%clk 0:02:24.4]}
15... Ng4 {[%clk 0:01:27.2]} 16. Rac1 {[%clk 0:02:02.4]} 16... Ne5 {[%clk
0:01:25.3]} 17. Red1 {[%clk 0:01:57.2]} 17... d6 {[%clk 0:01:19.8]} 18. Nd5
{[%clk 0:01:53.2]} 18... Bg4 {[%clk 0:01:11.6]} 19. f3 {[%clk 0:01:49.8]} 19...
Be6 {[%clk 0:01:09.7]} 20. Nxe7+ {[%clk 0:01:49.1]} 20... Kh8 {[%clk 0:01:09.8]}
21. Bd4 {[%clk 0:01:48.4]} 21... Bxa2 {[%clk 0:01:06.6]} 22. Nd5 {[%clk
0:01:44.4]} 22... Bc4 {[%clk 0:01:03.5]} 23. Nb6 {[%clk 0:01:39.4]} 23... Nd3
{[%clk 0:00:35.7]} 24. Bxg7+ {[%clk 0:01:31.2]} 24... Kxg7 {[%clk 0:00:36.1]}
25. Rc3 {[%clk 0:01:21.8]} 25... Nf4 {[%clk 0:00:35.8]} 26. Kf2 {[%clk
0:01:11.9]} 26... Be6 {[%clk 0:00:08.3]} 27. Rxd6 {[%clk 0:01:06.8]} 27... f5
{[%clk 0:00:05.3]} 28. e5 {[%clk 0:01:04.6]} 28... g5 {[%clk 0:00:04.8]} 29. g3
{[%clk 0:01:04.9]} 1-0

[Event "Early-Titled-Tuesday-Blitz-October-03-2023"]
[Site "Chess.com"]
[Date "2023.10.03"]
[Round "7"]
[White "vedantgoswami"]
[Black "koncheto"]
[Result "0-1"]
[WhiteElo "2401"]
[BlackElo "2539"]
[TimeControl "180+1"]
[EndTime "9:18:41 PDT"]
[Termination "koncheto won on time"]

1. c3 {[%clk 0:03:00.9]} 1... d5 {[%clk 0:02:58.6]} 2. d4 {[%clk 0:03:01.1]}
2... Bf5 {[%clk 0:02:55.6]} 3. Qb3 {[%clk 0:02:59.7]} 3... b6 {[%clk 0:02:54.9]}
4. Nf3 {[%clk 0:02:52.7]} 4... e6 {[%clk 0:02:53.1]} 5. c4 {[%clk 0:02:51.1]}
5... Nf6 {[%clk 0:02:50.9]} 6. Nc3 {[%clk 0:02:50.7]} 6... c6 {[%clk 0:02:50]}
7. cxd5 {[%clk 0:02:47.2]} 7... cxd5 {[%clk 0:02:47.2]} 8. Bg5 {[%clk
0:02:40.9]} 8... Be7 {[%clk 0:02:45.3]} 9. Qb5+ {[%clk 0:02:19.3]} 9... Nbd7
{[%clk 0:02:36.3]} 10. Bxf6 {[%clk 0:02:02]} 10... Bxf6 {[%clk 0:02:36.2]} 11.
e3 {[%clk 0:01:58.7]} 11... O-O {[%clk 0:02:35.6]} 12. Be2 {[%clk 0:01:50.9]}
12... a6 {[%clk 0:02:34.4]} 13. Qb3 {[%clk 0:01:49.7]} 13... b5 {[%clk 0:02:35]}
14. O-O {[%clk 0:01:42.6]} 14... Rb8 {[%clk 0:02:27.9]} 15. Ne1 {[%clk
0:01:28.9]} 15... Nb6 {[%clk 0:02:24.8]} 16. Nd3 {[%clk 0:01:25]} 16... Nc4
{[%clk 0:02:25]} 17. Rfd1 {[%clk 0:01:22.4]} 17... Be7 {[%clk 0:02:18.3]} 18. a3
{[%clk 0:01:12.6]} 18... Qa5 {[%clk 0:02:13.8]} 19. Rac1 {[%clk 0:01:09.4]}
19... Rfc8 {[%clk 0:02:11.8]} 20. g3 {[%clk 0:00:43.8]} 20... h6 {[%clk
0:02:09.7]} 21. Kg2 {[%clk 0:00:43.3]} 21... Rc7 {[%clk 0:02:04.2]} 22. Rc2
{[%clk 0:00:30.4]} 22... Rbc8 {[%clk 0:01:55.8]} 23. Rdc1 {[%clk 0:00:28.7]}
23... Bxa3 {[%clk 0:01:11.1]} 24. bxa3 {[%clk 0:00:18.5]} 24... Nxa3 {[%clk
0:01:10.9]} 25. Nxd5 {[%clk 0:00:03.2]} 25... Be4+ {[%clk 0:00:49]} 0-1

[Event "Early-Titled-Tuesday-Blitz-October-03-2023"]
[Site "Chess.com"]
[Date "2023.10.03"]
[Round "7"]
[White "Mops_2004"]
[Black "jaskol95"]
[Result "1-0"]
[WhiteElo "2797"]
[BlackElo "2624"]
[TimeControl "180+1"]
[EndTime "9:18:42 PDT"]
[Termination "Mops_2004 won by resignation"]

1. g3 {[%clk 0:03:00.9]} 1... d5 {[%clk 0:02:59.6]} 2. Nf3 {[%clk 0:03:00.6]}
2... Nf6 {[%clk 0:03:00]} 3. Bg2 {[%clk 0:03:00.8]} 3... c6 {[%clk 0:03:00.2]}
4. O-O {[%clk 0:03:01.2]} 4... Bf5 {[%clk 0:03:00.4]} 5. c4 {[%clk 0:03:01.1]}
5... e6 {[%clk 0:03:00.8]} 6. Qb3 {[%clk 0:03:01.4]} 6... Qb6 {[%clk 0:03:00.4]}
7. d3 {[%clk 0:03:02]} 7... Nbd7 {[%clk 0:02:59.2]} 8. cxd5 {[%clk 0:03:02.3]}
8... exd5 {[%clk 0:02:57.9]} 9. Qc2 {[%clk 0:03:02]} 9... Be7 {[%clk 0:02:56.6]}
10. Nc3 {[%clk 0:03:02.5]} 10... O-O {[%clk 0:02:55.1]} 11. e4 {[%clk
0:03:03.1]} 11... dxe4 {[%clk 0:02:53.7]} 12. dxe4 {[%clk 0:03:04]} 12... Bg6
{[%clk 0:02:54.4]} 13. Nh4 {[%clk 0:03:04.4]} 13... Rfe8 {[%clk 0:02:51.3]} 14.
Bf4 {[%clk 0:03:03.7]} 14... Bb4 {[%clk 0:02:42.8]} 15. Nxg6 {[%clk 0:03:00.9]}
15... hxg6 {[%clk 0:02:42.9]} 16. Rad1 {[%clk 0:02:40.8]} 16... Ne5 {[%clk
0:02:38]} 17. a3 {[%clk 0:02:35]} 17... Bf8 {[%clk 0:02:32]} 18. h3 {[%clk
0:02:27.5]} 18... Nc4 {[%clk 0:02:16.7]} 19. Bc1 {[%clk 0:02:20.4]} 19... Rad8
{[%clk 0:02:00.4]} 20. Kh2 {[%clk 0:02:19.6]} 20... Na5 {[%clk 0:01:49.9]} 21.
b4 {[%clk 0:02:12.2]} 21... Nc4 {[%clk 0:01:48.1]} 22. Qe2 {[%clk 0:02:05.6]}
22... Nd6 {[%clk 0:01:30.3]} 23. e5 {[%clk 0:01:47]} 23... Nf5 {[%clk
0:01:27.6]} 24. f4 {[%clk 0:01:26.5]} 24... Nh5 {[%clk 0:01:10.5]} 25. Ne4
{[%clk 0:01:21.9]} 25... Nd4 {[%clk 0:00:53.2]} 26. Qf2 {[%clk 0:01:20.7]} 26...
f5 {[%clk 0:00:27.2]} 27. Ng5 {[%clk 0:01:20.4]} 27... Ne6 {[%clk 0:00:18]} 28.
Qxb6 {[%clk 0:01:05.3]} 28... axb6 {[%clk 0:00:18.1]} 29. Nxe6 {[%clk
0:00:59.5]} 29... Rxd1 {[%clk 0:00:17.7]} 30. Rxd1 {[%clk 0:01:00.4]} 30... Rxe6
{[%clk 0:00:17.8]} 31. g4 {[%clk 0:01:01.1]} 31... Nxf4 {[%clk 0:00:07.8]} 32.
Bxf4 {[%clk 0:01:00.1]} 32... g5 {[%clk 0:00:08.5]} 33. gxf5 {[%clk 0:00:59.5]}
33... Re8 {[%clk 0:00:07.7]} 34. Bg3 {[%clk 0:00:59.4]} 1-0

[Event "Early-Titled-Tuesday-Blitz-October-03-2023"]
[Site "Chess.com"]
[Date "2023.10.03"]
[Round "7"]
[White "Heydarli77"]
[Black "GMJustin"]
[Result "0-1"]
[WhiteElo "2299"]
[BlackElo "2206"]
[TimeControl "180+1"]
[EndTime "9:18:44 PDT"]
[Termination "GMJustin won by checkmate"]

1. e4 {[%clk 0:02:59]} 1... Nh6 {[%clk 0:02:45.6]} 2. d4 {[%clk 0:02:57.5]} 2...
d5 {[%clk 0:02:45]} 3. exd5 {[%clk 0:02:55.1]} 3... Nf5 {[%clk 0:02:42.9]} 4. c4
{[%clk 0:02:52.2]} 4... c6 {[%clk 0:02:39.9]} 5. Nc3 {[%clk 0:02:49.2]} 5...
cxd5 {[%clk 0:02:37.9]} 6. cxd5 {[%clk 0:02:49.1]} 6... g6 {[%clk 0:02:33.9]} 7.
Bb5+ {[%clk 0:02:48.2]} 7... Nd7 {[%clk 0:02:30.6]} 8. Nf3 {[%clk 0:02:47.4]}
8... Bg7 {[%clk 0:02:28.2]} 9. O-O {[%clk 0:02:44.8]} 9... O-O {[%clk
0:02:27.7]} 10. Ba4 {[%clk 0:02:36.9]} 10... a6 {[%clk 0:02:13.5]} 11. Bb3
{[%clk 0:02:36.3]} 11... b5 {[%clk 0:02:11.1]} 12. a3 {[%clk 0:02:35.8]} 12...
Bb7 {[%clk 0:02:10.5]} 13. Bf4 {[%clk 0:02:27.6]} 13... Nb6 {[%clk 0:02:06.5]}
14. Rc1 {[%clk 0:02:17.8]} 14... Nxd5 {[%clk 0:01:58.3]} 15. Nxd5 {[%clk
0:02:14.8]} 15... Bxd5 {[%clk 0:01:57.9]} 16. Bc7 {[%clk 0:02:12.7]} 16... Bxb3
{[%clk 0:01:48.6]} 17. Qxb3 {[%clk 0:02:06.2]} 17... Nxd4 {[%clk 0:01:43]} 18.
Nxd4 {[%clk 0:01:56.3]} 18... Qxd4 {[%clk 0:01:42.9]} 19. Rc2 {[%clk 0:01:55.5]}
19... Rac8 {[%clk 0:01:38.9]} 20. Rfc1 {[%clk 0:01:50.6]} 20... Qd7 {[%clk
0:01:31.1]} 21. g3 {[%clk 0:01:48.1]} 21... Bh6 {[%clk 0:01:21.6]} 22. f4 {[%clk
0:01:43.3]} 22... Rfe8 {[%clk 0:01:13.7]} 23. Be5 {[%clk 0:01:39.4]} 23... e6
{[%clk 0:00:55.4]} 24. Qe3 {[%clk 0:01:30]} 24... Rxc2 {[%clk 0:00:53]} 25. Rxc2
{[%clk 0:01:26.8]} 25... Qd1+ {[%clk 0:00:53.4]} 26. Kg2 {[%clk 0:01:22.3]}
26... Qxc2+ {[%clk 0:00:53.5]} 27. Kh3 {[%clk 0:01:22.5]} 27... Rd8 {[%clk
0:00:50.1]} 28. Bc3 {[%clk 0:01:21.5]} 28... Qf5+ {[%clk 0:00:43.4]} 29. Kg2
{[%clk 0:01:20.7]} 29... Qd5+ {[%clk 0:00:42.7]} 30. Kh3 {[%clk 0:01:19.5]}
30... Bg7 {[%clk 0:00:40.2]} 31. Bb4 {[%clk 0:01:18.2]} 31... h5 {[%clk
0:00:32.6]} 32. Be7 {[%clk 0:01:15.6]} 32... Qf5+ {[%clk 0:00:28.6]} 33. Kg2
{[%clk 0:01:13.4]} 33... Rd3 {[%clk 0:00:28.5]} 34. Qb6 {[%clk 0:01:08.5]} 34...
Qe4+ {[%clk 0:00:25.6]} 35. Kh3 {[%clk 0:01:08.2]} 35... Rd2 {[%clk 0:00:21.4]}
36. Qb8+ {[%clk 0:01:00.6]} 36... Kh7 {[%clk 0:00:20.7]} 37. g4 {[%clk
0:00:56.1]} 37... Qg2+ {[%clk 0:00:18.7]} 38. Kh4 {[%clk 0:00:55.9]} 38... Qxg4#
{[%clk 0:00:19.2]} 0-1

[Event "Early-Titled-Tuesday-Blitz-October-03-2023"]
[Site "Chess.com"]
[Date "2023.10.03"]
[Round "7"]
[White "Dr_crypt"]
[Black "aistrel"]
[Result "1-0"]
[WhiteElo "2439"]
[BlackElo "2554"]
[TimeControl "180+1"]
[EndTime "9:18:47 PDT"]
[Termination "Dr_crypt won on time"]

1. d4 {[%clk 0:03:00.1]} 1... d5 {[%clk 0:02:57]} 2. c4 {[%clk 0:02:59.7]} 2...
e6 {[%clk 0:02:57.4]} 3. Nc3 {[%clk 0:02:59.8]} 3... c6 {[%clk 0:02:57.8]} 4. e3
{[%clk 0:02:56.9]} 4... f5 {[%clk 0:02:57]} 5. Nf3 {[%clk 0:02:50.2]} 5... Nh6
{[%clk 0:02:57]} 6. Be2 {[%clk 0:02:50.5]} 6... Bd6 {[%clk 0:02:55.3]} 7. O-O
{[%clk 0:02:49.7]} 7... g5 {[%clk 0:02:55.5]} 8. Ne5 {[%clk 0:02:46.8]} 8... g4
{[%clk 0:02:54.2]} 9. e4 {[%clk 0:02:39.1]} 9... Nf7 {[%clk 0:02:18.8]} 10. Nxf7
{[%clk 0:02:38.7]} 10... Kxf7 {[%clk 0:02:19.7]} 11. exd5 {[%clk 0:02:38.5]}
11... exd5 {[%clk 0:02:19.7]} 12. cxd5 {[%clk 0:02:38.9]} 12... cxd5 {[%clk
0:02:20.3]} 13. Qb3 {[%clk 0:02:33.7]} 13... Be6 {[%clk 0:02:13.5]} 14. Qxb7+
{[%clk 0:02:33.6]} 14... Nd7 {[%clk 0:02:11.5]} 15. Nxd5 {[%clk 0:02:19.6]}
15... Qa5 {[%clk 0:01:51.2]} 16. Nf4 {[%clk 0:01:55.9]} 16... Rab8 {[%clk
0:01:36.6]} 17. Qc6 {[%clk 0:01:48.3]} 17... Rb6 {[%clk 0:01:22.8]} 18. Qc2
{[%clk 0:01:46.5]} 18... Nf6 {[%clk 0:01:09.9]} 19. Nxe6 {[%clk 0:01:37.9]}
19... Kxe6 {[%clk 0:01:10.8]} 20. Bc4+ {[%clk 0:01:38.1]} 20... Kd7 {[%clk
0:01:09.4]} 21. Bg5 {[%clk 0:01:34.6]} 21... Ne4 {[%clk 0:01:09.4]} 22. Bh4
{[%clk 0:01:33.3]} 22... Nd2 {[%clk 0:00:37.7]} 23. Rfe1 {[%clk 0:01:27.6]}
23... Re8 {[%clk 0:00:21.1]} 24. Rxe8 {[%clk 0:01:08.4]} 24... Kxe8 {[%clk
0:00:22]} 25. Be6 {[%clk 0:01:00.8]} 25... Bxh2+ {[%clk 0:00:05.6]} 26. Kxh2
{[%clk 0:01:00.2]} 26... Rxe6 {[%clk 0:00:06.5]} 27. Qc8+ {[%clk 0:00:57.2]}
27... Qd8 {[%clk 0:00:05.6]} 28. Qxd8+ {[%clk 0:00:56.8]} 1-0

[Event "Early-Titled-Tuesday-Blitz-October-03-2023"]
[Site "Chess.com"]
[Date "2023.10.03"]
[Round "7"]
[White "Kielinkei"]
[Black "FREDERICKtheMATE"]
[Result "1/2-1/2"]
[WhiteElo "2466"]
[BlackElo "2595"]
[TimeControl "180+1"]
[EndTime "9:18:51 PDT"]
[Termination "Game drawn - insufficient material"]

1. c4 {[%clk 0:03:00.9]} 1... Nf6 {[%clk 0:03:00]} 2. g3 {[%clk 0:03:00.2]} 2...
e6 {[%clk 0:02:58.7]} 3. Bg2 {[%clk 0:03:00.2]} 3... d5 {[%clk 0:02:59.2]} 4. d4
{[%clk 0:03:00.7]} 4... dxc4 {[%clk 0:02:58.8]} 5. Nf3 {[%clk 0:02:59.8]} 5...
c5 {[%clk 0:02:58.9]} 6. O-O {[%clk 0:02:55.9]} 6... Nc6 {[%clk 0:02:57.5]} 7.
dxc5 {[%clk 0:02:50.5]} 7... Qxd1 {[%clk 0:02:56.5]} 8. Rxd1 {[%clk 0:02:51.4]}
8... Bxc5 {[%clk 0:02:56.7]} 9. Nbd2 {[%clk 0:02:51.7]} 9... c3 {[%clk 0:02:57]}
10. bxc3 {[%clk 0:02:52.6]} 10... O-O {[%clk 0:02:56.6]} 11. Nb3 {[%clk
0:02:50.5]} 11... Be7 {[%clk 0:02:56.3]} 12. Nfd4 {[%clk 0:02:48.8]} 12... Bd7
{[%clk 0:02:52.5]} 13. Nxc6 {[%clk 0:02:41.5]} 13... Bxc6 {[%clk 0:02:53.4]} 14.
Bxc6 {[%clk 0:02:41.9]} 14... bxc6 {[%clk 0:02:54]} 15. c4 {[%clk 0:02:35.6]}
15... Rfd8 {[%clk 0:02:51.7]} 16. Bb2 {[%clk 0:02:34.5]} 16... Ne4 {[%clk
0:02:49.3]} 17. Kg2 {[%clk 0:02:22.1]} 17... Kf8 {[%clk 0:02:44.4]} 18. Kf3
{[%clk 0:02:09]} 18... Nc5 {[%clk 0:02:38]} 19. Ba3 {[%clk 0:02:05]} 19... Nxb3
{[%clk 0:02:33.6]} 20. Bxe7+ {[%clk 0:02:03.9]} 20... Kxe7 {[%clk 0:02:33]} 21.
axb3 {[%clk 0:02:04.5]} 21... Rxd1 {[%clk 0:02:32.9]} 22. Rxd1 {[%clk
0:02:05.4]} 22... Rb8 {[%clk 0:02:33]} 23. Rd3 {[%clk 0:02:03.1]} 23... c5
{[%clk 0:02:30.7]} 24. Ke3 {[%clk 0:01:51.8]} 24... a5 {[%clk 0:02:29.7]} 25.
Kd2 {[%clk 0:01:50.8]} 25... Rb4 {[%clk 0:02:29.9]} 26. Kc3 {[%clk 0:01:50.4]}
26... a4 {[%clk 0:02:29.7]} 27. bxa4 {[%clk 0:01:51.3]} 27... Rxa4 {[%clk
0:02:30.4]} 28. Rd2 {[%clk 0:01:47.1]} 28... f5 {[%clk 0:02:24.4]} 29. Rb2
{[%clk 0:01:45.2]} 29... Ra5 {[%clk 0:02:18.9]} 30. Rb5 {[%clk 0:01:40.3]} 30...
Ra2 {[%clk 0:02:14.5]} 31. Kd3 {[%clk 0:01:34.5]} 31... Ra3+ {[%clk 0:02:13.3]}
32. Kd2 {[%clk 0:01:28.8]} 32... Kd6 {[%clk 0:02:10.4]} 33. Rb6+ {[%clk
0:01:26.5]} 33... Ke5 {[%clk 0:02:08.9]} 34. Rc6 {[%clk 0:01:07.4]} 34... Kd4
{[%clk 0:02:07.6]} 35. Rxe6 {[%clk 0:01:07.1]} 35... Ra2+ {[%clk 0:02:06.5]} 36.
Kd1 {[%clk 0:01:04]} 36... Kxc4 {[%clk 0:02:04]} 37. Re7 {[%clk 0:00:47.6]}
37... Kc3 {[%clk 0:02:02.1]} 38. Re3+ {[%clk 0:00:47.3]} 38... Kb4 {[%clk
0:02:00.2]} 39. Re7 {[%clk 0:00:44.9]} 39... c4 {[%clk 0:01:57.9]} 40. Rxg7
{[%clk 0:00:39.3]} 40... Kb3 {[%clk 0:01:58.2]} 41. Rxh7 {[%clk 0:00:29.1]}
41... Ra1+ {[%clk 0:01:57]} 42. Kd2 {[%clk 0:00:29.1]} 42... c3+ {[%clk
0:01:56.9]} 43. Ke3 {[%clk 0:00:26]} 43... c2 {[%clk 0:01:52.8]} 44. Rb7+ {[%clk
0:00:22.6]} 44... Kc3 {[%clk 0:01:46.3]} 45. Rc7+ {[%clk 0:00:21.7]} 45... Kb3
{[%clk 0:01:45.7]} 46. Kf4 {[%clk 0:00:18.1]} 46... c1=Q+ {[%clk 0:01:44.8]} 47.
Rxc1 {[%clk 0:00:18.4]} 47... Rxc1 {[%clk 0:01:45.7]} 48. Kxf5 {[%clk
0:00:18.9]} 48... Rc2 {[%clk 0:01:46.1]} 49. f4 {[%clk 0:00:13.8]} 49... Rxe2
{[%clk 0:01:45.9]} 50. h4 {[%clk 0:00:14.6]} 50... Kc4 {[%clk 0:01:45.4]} 51. h5
{[%clk 0:00:13]} 51... Kd5 {[%clk 0:01:44.6]} 52. h6 {[%clk 0:00:13.7]} 52...
Rh2 {[%clk 0:01:44.7]} 53. Kg6 {[%clk 0:00:13.1]} 53... Rg2 {[%clk 0:01:44.1]}
54. h7 {[%clk 0:00:11.7]} 54... Rxg3+ {[%clk 0:01:44.1]} 55. Kf7 {[%clk
0:00:12.2]} 55... Rh3 {[%clk 0:01:44.2]} 56. Kg7 {[%clk 0:00:12.8]} 56... Ke4
{[%clk 0:01:44.4]} 57. h8=Q {[%clk 0:00:10.7]} 57... Rxh8 {[%clk 0:01:44.3]} 58.
Kxh8 {[%clk 0:00:11.6]} 58... Kxf4 {[%clk 0:01:44.7]} 1/2-1/2

[Event "Early-Titled-Tuesday-Blitz-October-03-2023"]
[Site "Chess.com"]
[Date "2023.10.03"]
[Round "7"]
[White "LaPiToB"]
[Black "ljuks68"]
[Result "1-0"]
[WhiteElo "2295"]
[BlackElo "2410"]
[TimeControl "180+1"]
[EndTime "9:18:52 PDT"]
[Termination "LaPiToB won by resignation"]

1. c4 {[%clk 0:02:58.8]} 1... c6 {[%clk 0:02:54.5]} 2. d4 {[%clk 0:02:54.4]}
2... d5 {[%clk 0:02:54.7]} 3. cxd5 {[%clk 0:02:46.1]} 3... cxd5 {[%clk
0:02:54.3]} 4. Bf4 {[%clk 0:02:44.4]} 4... Nf6 {[%clk 0:02:54.7]} 5. e3 {[%clk
0:02:41.2]} 5... Nc6 {[%clk 0:02:54.8]} 6. Nc3 {[%clk 0:02:40.3]} 6... Bf5
{[%clk 0:02:54.4]} 7. Qb3 {[%clk 0:02:38.4]} 7... Na5 {[%clk 0:02:54.4]} 8. Qa4+
{[%clk 0:02:38]} 8... Bd7 {[%clk 0:02:53.8]} 9. Qc2 {[%clk 0:02:37.8]} 9... e6
{[%clk 0:02:49.3]} 10. Bd3 {[%clk 0:02:33.4]} 10... Nc6 {[%clk 0:02:46.3]} 11.
a3 {[%clk 0:02:28.1]} 11... Nh5 {[%clk 0:02:46.1]} 12. Bg3 {[%clk 0:02:22.9]}
12... g6 {[%clk 0:02:42.4]} 13. Nf3 {[%clk 0:02:21.1]} 13... Nxg3 {[%clk
0:02:38.5]} 14. hxg3 {[%clk 0:02:18.6]} 14... Bg7 {[%clk 0:02:38.9]} 15. Rc1
{[%clk 0:02:15.4]} 15... a6 {[%clk 0:02:25.5]} 16. Qe2 {[%clk 0:01:47]} 16...
O-O {[%clk 0:02:19.7]} 17. O-O {[%clk 0:01:41.4]} 17... b5 {[%clk 0:02:17]} 18.
b4 {[%clk 0:01:24.4]} 18... Be8 {[%clk 0:02:12.2]} 19. Nb1 {[%clk 0:01:23.4]}
19... e5 {[%clk 0:01:45.9]} 20. dxe5 {[%clk 0:01:08]} 20... Nxe5 {[%clk
0:01:45.8]} 21. Nxe5 {[%clk 0:01:06.8]} 21... Bxe5 {[%clk 0:01:46]} 22. Rc2
{[%clk 0:00:59.6]} 22... Rc8 {[%clk 0:01:40.9]} 23. Rfc1 {[%clk 0:00:58.2]}
23... Rxc2 {[%clk 0:01:40.3]} 24. Rxc2 {[%clk 0:00:58]} 24... Bd7 {[%clk
0:01:40.7]} 25. Nd2 {[%clk 0:00:57.5]} 25... d4 {[%clk 0:01:13.1]} 26. e4 {[%clk
0:00:53.2]} 26... Be6 {[%clk 0:01:02.2]} 27. f4 {[%clk 0:00:42.7]} 27... Bg7
{[%clk 0:00:57.6]} 28. e5 {[%clk 0:00:36.5]} 28... f6 {[%clk 0:00:46.1]} 29.
exf6 {[%clk 0:00:30.5]} 29... Qxf6 {[%clk 0:00:45.5]} 30. Ne4 {[%clk 0:00:30.1]}
30... Qf7 {[%clk 0:00:40]} 31. Ng5 {[%clk 0:00:29.1]} 1-0

[Event "Early-Titled-Tuesday-Blitz-October-03-2023"]
[Site "Chess.com"]
[Date "2023.10.03"]
[Round "7"]
[White "andrzej"]
[Black "milovichalex"]
[Result "1-0"]
[WhiteElo "2461"]
[BlackElo "2302"]
[TimeControl "180+1"]
[EndTime "9:18:57 PDT"]
[Termination "andrzej won by resignation"]

1. e4 {[%clk 0:03:00.9]} 1... e5 {[%clk 0:02:59.8]} 2. Nf3 {[%clk 0:03:01.2]}
2... Nc6 {[%clk 0:03:00.1]} 3. Bb5 {[%clk 0:03:01.8]} 3... a6 {[%clk 0:03:00.3]}
4. Ba4 {[%clk 0:03:02.5]} 4... Nf6 {[%clk 0:03:00.4]} 5. O-O {[%clk 0:03:03.1]}
5... Be7 {[%clk 0:03:00.8]} 6. Re1 {[%clk 0:03:03.6]} 6... b5 {[%clk 0:03:01.2]}
7. Bb3 {[%clk 0:03:04.3]} 7... O-O {[%clk 0:03:01.9]} 8. a4 {[%clk 0:03:04.7]}
8... Rb8 {[%clk 0:03:01.5]} 9. axb5 {[%clk 0:03:02.2]} 9... axb5 {[%clk
0:03:01.9]} 10. c3 {[%clk 0:03:02.7]} 10... d5 {[%clk 0:02:48.6]} 11. exd5
{[%clk 0:03:02.6]} 11... Nxd5 {[%clk 0:02:48]} 12. Nxe5 {[%clk 0:03:02.7]} 12...
Nxe5 {[%clk 0:02:48.4]} 13. Rxe5 {[%clk 0:03:03.6]} 13... c6 {[%clk 0:02:48.9]}
14. d4 {[%clk 0:02:53.6]} 14... Bd6 {[%clk 0:02:48.9]} 15. Re2 {[%clk
0:02:52.7]} 15... Bg4 {[%clk 0:02:38.3]} 16. f3 {[%clk 0:02:51.8]} 16... Qh4
{[%clk 0:02:37]} 17. g3 {[%clk 0:02:44.8]} 17... Qh3 {[%clk 0:01:48.2]} 18. fxg4
{[%clk 0:02:44.4]} 18... Rbe8 {[%clk 0:01:46.2]} 19. Bd2 {[%clk 0:02:08.7]}
19... Bxg3 {[%clk 0:01:13.7]} 20. hxg3 {[%clk 0:02:05.3]} 20... Qxg4 {[%clk
0:01:13.6]} 21. Rg2 {[%clk 0:01:57.9]} 21... Qh3 {[%clk 0:01:06.2]} 22. Na3
{[%clk 0:01:44]} 22... Ne3 {[%clk 0:01:03.7]} 23. Bxe3 {[%clk 0:01:40.4]} 23...
Rxe3 {[%clk 0:01:03.2]} 24. Qf1 {[%clk 0:01:25.1]} 24... Rxg3 {[%clk 0:01:02.8]}
25. Nc2 {[%clk 0:01:12.6]} 25... Rf3 {[%clk 0:00:54.3]} 26. Qe2 {[%clk
0:01:04.4]} 26... Rf6 {[%clk 0:00:48.4]} 27. Rf1 {[%clk 0:00:48.7]} 27... Rd6
{[%clk 0:00:38.7]} 28. Rxf7 {[%clk 0:00:38.9]} 28... Qc8 {[%clk 0:00:13.8]} 29.
Rc7+ {[%clk 0:00:32.4]} 1-0

[Event "Early-Titled-Tuesday-Blitz-October-03-2023"]
[Site "Chess.com"]
[Date "2023.10.03"]
[Round "7"]
[White "LangesNasenhaar"]
[Black "biostatistician"]
[Result "0-1"]
[WhiteElo "2446"]
[BlackElo "2636"]
[TimeControl "180+1"]
[EndTime "9:18:59 PDT"]
[Termination "biostatistician won on time"]

1. d4 {[%clk 0:03:00.9]} 1... Nf6 {[%clk 0:02:59.9]} 2. Nc3 {[%clk 0:03:01.2]}
2... d5 {[%clk 0:02:59.6]} 3. Bf4 {[%clk 0:03:01.7]} 3... Bf5 {[%clk 0:02:59.8]}
4. e3 {[%clk 0:03:01.4]} 4... e6 {[%clk 0:03:00.1]} 5. Nf3 {[%clk 0:03:01.8]}
5... Bd6 {[%clk 0:03:00.4]} 6. Ne5 {[%clk 0:03:02.5]} 6... Nbd7 {[%clk
0:02:56.8]} 7. g4 {[%clk 0:03:02.9]} 7... Bxe5 {[%clk 0:02:55.3]} 8. dxe5 {[%clk
0:03:01]} 8... Nxg4 {[%clk 0:02:54.9]} 9. Rg1 {[%clk 0:02:46.5]} 9... Qh4 {[%clk
0:02:50.1]} 10. Bg3 {[%clk 0:02:29.9]} 10... Qh6 {[%clk 0:02:48]} 11. Qd4 {[%clk
0:02:19.5]} 11... O-O {[%clk 0:02:46.3]} 12. Bd3 {[%clk 0:01:16.5]} 12... c5
{[%clk 0:02:38]} 13. Qf4 {[%clk 0:01:11.5]} 13... Qxf4 {[%clk 0:02:33.8]} 14.
exf4 {[%clk 0:01:09.2]} 14... Nh6 {[%clk 0:02:24.5]} 15. O-O-O {[%clk
0:01:02.5]} 15... Bxd3 {[%clk 0:02:22.1]} 16. Rxd3 {[%clk 0:01:01.1]} 16... Nf5
{[%clk 0:02:23]} 17. f3 {[%clk 0:00:56.3]} 17... c4 {[%clk 0:02:15.6]} 18. Rd2
{[%clk 0:00:53.5]} 18... Nc5 {[%clk 0:02:15.5]} 19. Bf2 {[%clk 0:00:50.5]} 19...
Rfc8 {[%clk 0:02:15.9]} 20. Ne2 {[%clk 0:00:44]} 20... b5 {[%clk 0:02:13.4]} 21.
Ng3 {[%clk 0:00:42.5]} 21... Nxg3 {[%clk 0:02:09.1]} 22. hxg3 {[%clk 0:00:41.7]}
22... a5 {[%clk 0:02:09.6]} 23. Bd4 {[%clk 0:00:37.1]} 23... b4 {[%clk
0:02:09.5]} 24. Rh2 {[%clk 0:00:34.4]} 24... a4 {[%clk 0:02:07]} 25. Rgh1 {[%clk
0:00:33.9]} 25... h6 {[%clk 0:02:06.9]} 26. g4 {[%clk 0:00:29.3]} 26... b3
{[%clk 0:02:06.9]} 27. a3 {[%clk 0:00:27.5]} 27... bxc2 {[%clk 0:02:02.8]} 28.
Kxc2 {[%clk 0:00:19.7]} 28... Nb3 {[%clk 0:01:59.6]} 29. Bc3 {[%clk 0:00:17.7]}
29... d4 {[%clk 0:01:59.5]} 30. Bb4 {[%clk 0:00:18.1]} 30... c3 {[%clk
0:01:53.5]} 31. bxc3 {[%clk 0:00:17]} 31... dxc3 {[%clk 0:01:54.4]} 32. g5
{[%clk 0:00:17.3]} 32... Nd4+ {[%clk 0:01:51.2]} 33. Kd3 {[%clk 0:00:17.3]}
33... Nxf3 {[%clk 0:01:50.7]} 34. Rh3 {[%clk 0:00:17.2]} 34... c2 {[%clk
0:01:46.4]} 35. Rc1 {[%clk 0:00:17.3]} 35... Rd8+ {[%clk 0:01:38.1]} 36. Ke3
{[%clk 0:00:14.7]} 36... Nd4 {[%clk 0:01:28.1]} 37. gxh6 {[%clk 0:00:14.9]}
37... gxh6 {[%clk 0:01:23.3]} 38. Ke4 {[%clk 0:00:06.4]} 38... Nf5 {[%clk
0:01:17.6]} 39. Rxc2 {[%clk 0:00:04.1]} 39... Rd4+ {[%clk 0:01:16.6]} 40. Kf3
{[%clk 0:00:04.6]} 40... Kh7 {[%clk 0:01:07.5]} 41. Ke2 {[%clk 0:00:02.2]} 41...
Rxf4 {[%clk 0:01:06]} 0-1